bitfinex/quotes_BTCUSD_20241107
["timestamp","ask_amount","ask_price","bid_price","bid_amount"]
[1731020856539,0.01226828,75783.0,75782.0,0.13224102]
[1731020857232,0.01426828,75783.0,75782.0,0.13224102]
[1731020859069,0.01226828,75783.0,75782.0,0.13224102]
[1731020859513,0.002,75785.0,75782.0,0.13224102]
[1731020859714,0.01228688,75783.0,75782.0,0.13224102]
[1731020860632,0.01428688,75783.0,75782.0,0.13224102]
[1731020863137,0.03394622,75783.0,75782.0,0.14546512]
[1731020863386,0.01228688,75783.0,75782.0,0.14546512]
[1731020866157,0.002,75792.0,75782.0,0.14546512]
[1731020866426,0.002,75783.0,75782.0,0.13224102]
[1731020866688,0.01229451,75783.0,75782.0,0.13224102]
[1731020867927,0.01229451,75783.0,75782.0,0.13529474]
[1731020869127,0.002,75788.0,75782.0,0.13529474]
[1731020869386,0.002,75788.0,75783.0,0.01616807]
[1731020869629,0.01230448,75787.0,75784.0,0.13224102]
[1731020869847,0.002,75788.0,75784.0,0.13224102]
[1731020869848,0.01230448,75786.0,75785.0,0.00263863]
[1731020870089,0.01230448,75786.0,75785.0,0.13710147]
[1731020870796,0.66911248,75796.0,75785.0,0.13710147]
[1731020871034,0.66911248,75796.0,75786.0,0.14738741]
[1731020871272,0.66911248,75796.0,75787.0,0.00263848]
[1731020871506,0.66911248,75796.0,75788.0,0.13224102]
[1731020871730,0.66911248,75796.0,75789.0,0.00487133]
[1731020871964,0.66911248,75796.0,75790.0,0.14746689]
[1731020872210,0.005,75802.0,75791.0,0.00263848]
[1731020872426,0.005,75802.0,75792.0,0.13224102]
[1731020874564,0.66911248,75803.0,75794.0,0.19868997]
[1731020874793,0.001666,75804.0,75795.0,0.13487932]
[1731020875023,0.19868997,75803.0,75795.0,0.13446205]
[1731020875239,0.001666,75804.0,75795.0,0.13446205]
[1731020875465,0.001666,75804.0,75796.0,0.1]
[1731020875700,0.001666,75804.0,75797.0,0.18161116]
[1731020875938,0.001666,75804.0,75797.0,0.33740626]
[1731020876162,0.001666,75804.0,75799.0,0.13224102]
[1731020876585,0.001666,75804.0,75800.0,0.00221873]
[1731020876784,0.001666,75804.0,75801.0,0.13224102]
[1731020876994,0.001666,75804.0,75801.0,0.14960504]
[1731020879696,0.001666,75804.0,75801.0,0.13445865]
[1731020881515,0.001666,75804.0,75801.0,0.13224102]
[1731020882107,0.001666,75804.0,75802.0,0.00263819]
[1731020882309,0.001666,75804.0,75803.0,0.13224102]
[1731020882460,0.001666,75804.0,75803.0,0.13444702]
[1731020882667,0.001666,75804.0,75803.0,0.16324924]
[1731020883079,0.001666,75804.0,75803.0,0.13444702]
[1731020883303,0.001666,75804.0,75803.0,0.13224102]
[1731020883730,0.001666,75804.0,75793.0,0.01474669]
[1731020883731,0.01397228,75804.0,75793.0,0.01474669]
[1731020883932,0.01397228,75804.0,75794.0,0.33093099]
[1731020883933,0.01230628,75803.0,75794.0,0.33093099]
[1731020884142,0.01230628,75802.0,75795.0,0.0022137]
[1731020884350,0.001666,75804.0,75796.0,0.13224102]
[1731020884351,0.01230628,75801.0,75796.0,0.13224102]
[1731020884580,0.01230628,75800.0,75797.0,0.00263835]
[1731020884795,0.001666,75804.0,75798.0,0.13224102]
[1731020884796,0.01230628,75799.0,75798.0,0.13224102]
[1731020884993,0.001666,75804.0,75798.0,0.13444812]
[1731020885196,0.01230976,75803.0,75798.0,0.13224102]
[1731020885403,0.01230976,75802.0,75798.0,0.13224102]
[1731020885603,0.001666,75804.0,75798.0,0.13224102]
[1731020885604,0.01230976,75801.0,75798.0,0.13224102]
[1731020885942,0.001666,75804.0,75799.0,0.0132241]
[1731020885943,0.01230976,75800.0,75799.0,0.0132241]
[1731020886143,0.001666,75804.0,75799.0,0.14546512]
[1731020886349,0.01230935,75803.0,75800.0,0.13224102]
[1731020886552,0.01230935,75802.0,75800.0,0.13224102]
[1731020886759,0.65752648,75807.0,75800.0,0.13224102]
[1731020886964,0.65983623,75806.0,75801.0,0.01454651]
[1731020887166,0.01230975,75805.0,75802.0,0.13224102]
[1731020887316,0.01230975,75804.0,75802.0,0.13224102]
[1731020887517,0.64752648,75806.0,75785.0,0.1]
[1731020887518,0.21100046,75803.0,75785.0,0.1]
[1731020887730,0.21100046,75803.0,75792.0,0.19868997]
[1731020887731,0.005,75797.0,75792.0,0.19868997]
[1731020887923,0.005,75797.0,75793.0,0.13224102]
[1731020887924,0.01231049,75796.0,75793.0,0.13224102]
[1731020888128,0.01231159,75795.0,75794.0,0.00263856]
[1731020888372,0.005,75801.0,75794.0,0.13224102]
[1731020888581,0.01231239,75800.0,75795.0,0.13224102]
[1731020888781,0.01231239,75799.0,75795.0,0.13224102]
[1731020888982,0.01231239,75798.0,75795.0,0.14546512]
[1731020889161,0.01231239,75797.0,75795.0,0.13224102]
[1731020889365,0.01231239,75796.0,75795.0,0.13224102]
[1731020893496,0.01231239,75796.0,75795.0,0.13307402]
[1731020893846,0.01232026,75796.0,75795.0,0.13307402]
[1731020894640,0.01232026,75796.0,75795.0,0.14638142]
[1731020895066,0.01232026,75796.0,75795.0,0.14859565]
[1731020895278,0.01232026,75796.0,75795.0,0.13528825]
[1731020895647,0.01232026,75796.0,75795.0,0.13307402]
[1731020895854,0.03464305,75796.0,75795.0,0.000833]
[1731020896108,0.78688619,75796.0,75795.0,0.000833]
[1731020896687,0.74252648,75796.0,75795.0,0.000833]
[1731020896888,0.78688882,75796.0,75795.0,0.000833]
[1731020898463,0.69188882,75796.0,75795.0,0.13307402]
[1731020898710,0.69188882,75796.0,75795.0,0.14638142]
[1731020898913,0.65984935,75796.0,75795.0,0.14638142]
[1731020899173,0.65984935,75796.0,75795.0,0.14842226]
[1731020899703,0.01232026,75799.0,75796.0,0.0487]
[1731020899905,0.0394094,75800.0,75797.0,0.13224102]
[1731020900115,0.0394094,75800.0,75799.0,0.15357517]
[1731020900315,0.0394094,75800.0,75799.0,0.38581619]
[1731020900524,0.0394094,75800.0,75799.0,0.38784261]
[1731020900951,0.001666,75804.0,75800.0,0.1]
[1731020901206,0.001666,75804.0,75803.0,0.23224102]
[1731020901464,0.001666,75804.0,75803.0,0.42376781]
[1731020901673,0.09851448,75828.0,75808.0,0.25357517]
[1731020901886,0.09851448,75828.0,75808.0,0.38581619]
[1731020902091,0.09851448,75828.0,75808.0,0.38781407]
[1731020902531,0.09851448,75828.0,75808.0,0.41802224]
[1731020902734,0.09851448,75828.0,75808.0,0.43132964]
[1731020903380,0.09851448,75828.0,75808.0,0.2475463]
[1731020903585,0.005,75825.0,75808.0,0.2475463]
[1731020904587,0.20368997,75824.0,75808.0,0.2475463]
[1731020904923,0.01229395,75823.0,75808.0,0.2475463]
[1731020905139,0.01229395,75822.0,75808.0,0.2475463]
[1731020905358,0.01229266,75821.0,75808.0,0.2475463]
[1731020905625,0.20368997,75824.0,75808.0,0.2475463]
[1731020905847,0.01229268,75823.0,75808.0,0.2475463]
[1731020906069,0.01229268,75822.0,75808.0,0.2475463]
[1731020906286,0.20368997,75824.0,75808.0,0.2475463]
[1731020906532,0.01229166,75823.0,75808.0,0.2475463]
[1731020906769,0.01229166,75822.0,75808.0,0.2475463]
[1731020907005,0.20368997,75824.0,75808.0,0.2475463]
[1731020907006,0.20368997,75824.0,75808.0,0.25018397]
[1731020907519,0.20368997,75824.0,75808.0,0.25018391]
[1731020907739,0.20368997,75824.0,75808.0,0.2475463]
[1731020907984,0.19868997,75816.0,75808.0,0.2475463]
[1731020912501,0.17802597,75816.0,75809.0,0.1]
[1731020912714,0.17802597,75816.0,75810.0,0.13224102]
[1731020912932,0.17802597,75816.0,75811.0,0.1]
[1731020913144,0.19868997,75824.0,75812.0,0.13224102]
[1731020913346,0.19868997,75824.0,75812.0,0.13414182]
[1731020913566,0.19868997,75824.0,75813.0,0.0290679]
[1731020913797,0.19868997,75824.0,75814.0,0.13224102]
[1731020914024,0.19868997,75824.0,75814.0,0.13414786]
[1731020914744,0.005,75825.0,75814.0,0.13414786]
[1731020918068,0.006666,75825.0,75814.0,0.13414786]
[1731020918279,0.006666,75825.0,75815.0,0.01955339]
[1731020918503,0.006666,75825.0,75816.0,0.13224102]
[1731020918728,0.006666,75825.0,75816.0,0.13414685]
[1731020919179,0.64752648,75826.0,75816.0,0.13414685]
[1731020919381,0.64419248,75826.0,75816.0,0.13414685]
[1731020919612,0.005,75828.0,75817.0,0.01537002]
[1731020919613,0.64419248,75827.0,75817.0,0.01537002]
[1731020919844,0.64419248,75827.0,75818.0,0.13224102]
[1731020920888,0.64419248,75827.0,75819.0,0.3549027]
[1731020921115,0.64419248,75827.0,75820.0,0.13224102]
[1731020921346,0.64419248,75827.0,75825.0,0.15357517]
[1731020921572,0.64419248,75827.0,75826.0,0.13224102]
[1731020921805,0.64419248,75827.0,75826.0,0.13412179]
[1731020925488,0.005,75835.0,75826.0,0.13412179]
[1731020925711,0.0122861,75834.0,75826.0,0.13412179]
[1731020925931,0.0122861,75833.0,75826.0,0.13224102]
[1731020926143,0.0122861,75832.0,75827.0,0.0132241]
[1731020926415,0.005,75835.0,75828.0,0.13224102]
[1731020926416,0.01229373,75831.0,75828.0,0.13224102]
[1731020926654,0.01729373,75835.0,75828.0,0.13412481]
[1731020926841,0.01229372,75834.0,75828.0,0.13224102]
[1731020927049,0.01229372,75833.0,75829.0,0.01454651]
[1731020927288,0.01229372,75832.0,75830.0,0.13224102]
[1731020927520,0.005,75837.0,75830.0,0.13224102]
[1731020927521,0.01229372,75831.0,75830.0,0.13224102]
[1731020928220,0.01229372,75831.0,75830.0,0.00188077]
[1731020928440,0.01729372,75831.0,75818.0,0.19868997]
[1731020928652,0.03200319,75830.0,75819.0,0.17138702]
[1731020928868,0.01229372,75829.0,75820.0,0.00263754]
[1731020929085,0.01229372,75828.0,75821.0,0.16957603]
[1731020929311,0.005,75831.0,75821.0,0.16957603]
[1731020929312,0.01229372,75827.0,75821.0,0.16957603]
[1731020929528,0.21098369,75826.0,75821.0,0.13224102]
[1731020929776,0.006666,75831.0,75821.0,0.13224102]
[1731020929777,0.01229372,75825.0,75821.0,0.13224102]
[1731020930014,0.03202274,75824.0,75822.0,0.0132241]
[1731020930256,0.03202274,75824.0,75821.0,0.13224102]
[1731020930257,0.005,75827.0,75823.0,0.13224102]
[1731020930465,0.0320604,75826.0,75823.0,0.13224102]
[1731020930684,0.0320604,75825.0,75823.0,0.13224102]
[1731020930898,0.005,75827.0,75823.0,0.13224102]
[1731020930899,0.0320604,75824.0,75823.0,0.13224102]
[1731020931324,0.005,75827.0,75823.0,0.13224102]
[1731020931543,0.03206178,75824.0,75823.0,0.13224102]
[1731020932653,0.005,75821.0,75805.0,0.0789]
[1731020932936,0.005,75821.0,75809.0,0.17466332]
[1731020932937,0.66954799,75820.0,75809.0,0.17466332]
[1731020933159,0.03206178,75819.0,75809.0,0.17466332]
[1731020933378,0.03206178,75818.0,75810.0,0.00263783]
[1731020933631,0.01233145,75817.0,75811.0,0.13224102]
[1731020933853,0.01233145,75816.0,75811.0,0.13224102]
[1731020934074,0.01233145,75815.0,75812.0,0.02916492]
[1731020934306,0.01233145,75814.0,75813.0,0.13224102]
[1731020934812,0.01233065,75814.0,75813.0,0.13224102]
[1731020935039,0.01233065,75814.0,75813.0,0.14604842]
[1731020935902,0.63748621,75820.0,75813.0,0.14604842]
[1731020936122,0.0320604,75819.0,75813.0,0.14604842]
[1731020936332,0.01233092,75818.0,75813.0,0.14604842]
[1731020936549,0.01233092,75817.0,75813.0,0.14604842]
[1731020936786,0.03206068,75816.0,75814.0,0.01518814]
[1731020937033,0.63748621,75820.0,75815.0,0.13224102]
[1731020937250,0.03206049,75819.0,75815.0,0.13224102]
[1731020937467,0.01233096,75818.0,75815.0,0.13224102]
[1731020937679,0.005,75821.0,75815.0,0.13224102]
[1731020937680,0.01233096,75817.0,75815.0,0.15007204]
[1731020937896,0.01233096,75816.0,75815.0,0.15007204]
[1731020938368,0.63748621,75827.0,75815.0,0.15007204]
[1731020938369,0.01306002,75826.0,75815.0,0.15007204]
[1731020938588,0.01972867,75825.0,75815.0,0.15007204]
[1731020938793,0.03205914,75824.0,75815.0,0.15007204]
[1731020939006,0.03205914,75823.0,75815.0,0.15007204]
[1731020939220,0.03205914,75822.0,75815.0,0.15007204]
[1731020939505,0.03205914,75821.0,75816.0,0.0199122]
[1731020939717,0.03205914,75820.0,75817.0,0.13224102]
[1731020939933,0.01233047,75819.0,75817.0,0.13224102]
[1731020940152,0.63748621,75827.0,75818.0,0.00181084]
[1731020940368,0.03205654,75826.0,75819.0,0.13224102]
[1731020940584,0.03205654,75825.0,75820.0,0.01521472]
[1731020940807,0.03205654,75824.0,75821.0,0.13224102]
[1731020941029,0.01972751,75823.0,75821.0,0.13224102]
[1731020941259,0.2307472,75822.0,75811.0,0.0004]
[1731020941525,0.15357517,75825.0,75814.0,0.19868997]
[1731020941526,0.08752972,75821.0,75814.0,0.19868997]
[1731020941738,0.03205694,75820.0,75811.0,0.0004]
[1731020941986,0.0752,75821.0,75811.0,0.0004]
[1731020941987,0.03205694,75819.0,75815.0,0.000833]
[1731020942285,0.03205694,75818.0,75815.0,0.000833]
[1731020942530,0.03205694,75817.0,75815.0,0.000833]
[1731020942734,0.03205694,75816.0,75815.0,0.000833]
[1731020943425,0.66954315,75816.0,75815.0,0.000833]
[1731020943930,0.71474315,75816.0,75815.0,0.000833]
[1731020944150,0.71474315,75816.0,75811.0,0.0004]
[1731020944151,0.028,75812.0,75811.0,0.0004]
[1731020944379,1.02531177,75812.0,75811.0,0.0004]
[1731020944662,1.32123825,75812.0,75811.0,0.0004]
[1731020944906,1.21946308,75812.0,75811.0,0.0004]
[1731020945119,1.21746308,75812.0,75811.0,0.0004]
[1731020945355,1.21946308,75812.0,75811.0,0.0004]
[1731020945635,1.50528102,75812.0,75811.0,0.0004]
[1731020945892,0.19157517,75809.0,75808.0,0.000833]
[1731020946170,0.70178504,75809.0,75808.0,0.000833]
[1731020946833,0.81991565,75809.0,75808.0,0.000833]
[1731020947051,0.92010148,75809.0,75808.0,0.000833]
[1731020947278,0.005,75796.0,75791.0,0.0004]
[1731020947492,1.04809348,75796.0,75791.0,0.0004]
[1731020947713,1.04809348,75796.0,75795.0,0.00252914]
[1731020947929,1.04809348,75796.0,75795.0,0.000833]
[1731020949439,1.08742136,75796.0,75795.0,0.000833]
[1731020949696,1.04809348,75796.0,75795.0,0.000833]
[1731020950407,1.06032663,75796.0,75795.0,0.000833]
[1731020950596,1.19041757,75796.0,75795.0,0.000833]
[1731020951219,1.06032663,75796.0,75795.0,0.000833]
[1731020954035,1.03232663,75796.0,75795.0,0.000833]
[1731020954977,1.16456765,75796.0,75795.0,0.000833]
[1731020955177,0.0897,75783.0,75781.0,0.000833]
[1731020955325,0.54078702,75783.0,75781.0,0.000833]
[1731020955530,0.60455933,75783.0,75781.0,0.000833]
[1731020955731,0.41173927,75783.0,75781.0,0.000833]
[1731020955971,0.43473927,75783.0,75781.0,0.000833]
[1731020956167,0.45516332,75783.0,75781.0,0.000833]
[1731020956373,0.43473927,75783.0,75781.0,0.000833]
[1731020956587,0.45516332,75783.0,75781.0,0.000833]
[1731020956989,0.41014161,75783.0,75781.0,0.000833]
[1731020957199,0.45505963,75783.0,75781.0,0.000833]
[1731020957434,0.32281861,75783.0,75781.0,0.000833]
[1731020957645,0.29981861,75783.0,75781.0,0.000833]
[1731020958382,0.3305249,75783.0,75781.0,0.000833]
[1731020959392,0.1,75778.0,75774.0,0.19868997]
[1731020959595,0.63665321,75777.0,75771.0,0.0004]
[1731020959832,0.63665321,75777.0,75775.0,0.00170918]
[1731020960048,0.15357517,75772.0,75771.0,0.0004]
[1731020960463,0.18542169,75772.0,75771.0,0.00211322]
[1731020960685,0.83432139,75772.0,75771.0,0.0004]
[1731020961343,0.84256444,75772.0,75771.0,0.0004]
[1731020961971,1.00086444,75772.0,75771.0,0.0004]
[1731020962830,1.03119026,75772.0,75771.0,0.0004]
[1731020963212,0.99262139,75772.0,75771.0,0.0004]
[1731020964156,1.00086435,75772.0,75771.0,0.0004]
[1731020964563,0.94852838,75772.0,75771.0,0.0004]
[1731020964762,1.00084508,75772.0,75771.0,0.0004]
[1731020965032,1.00084508,75772.0,75751.0,0.0004]
[1731020965033,0.005,75763.0,75751.0,0.0004]
[1731020965238,0.005,75761.0,75758.0,0.19868997]
[1731020965453,0.81805966,75762.0,75752.0,0.00234057]
[1731020965454,0.0773,75755.0,75752.0,0.00234057]
[1731020965658,0.0773,75755.0,75751.0,0.0004]
[1731020965659,0.6767272,75754.0,75751.0,0.0004]
[1731020965889,0.14507399,75753.0,75751.0,0.0004]
[1731020966087,0.16807399,75752.0,75751.0,0.0004]
[1731020966295,1.09754339,75752.0,75751.0,0.0004]
[1731020966519,1.09754339,75752.0,75739.0,0.19868997]
[1731020966520,0.01,75743.0,75739.0,0.19868997]
[1731020966729,0.1,75751.0,75739.0,0.19868997]
[1731020966730,0.15357517,75740.0,75739.0,0.19868997]
[1731020966943,0.19364916,75740.0,75732.0,0.001494]
[1731020967151,0.15357517,75733.0,75732.0,0.001494]
[1731020967387,0.19364916,75733.0,75732.0,0.001494]
[1731020967825,0.04007399,75733.0,75732.0,0.001494]
[1731020969822,0.6767272,75733.0,75732.0,0.001494]
[1731020970698,0.6527272,75733.0,75732.0,0.001494]
[1731020970911,0.80630237,75733.0,75732.0,0.001494]
[1731020971347,0.90630237,75733.0,75732.0,0.001494]
[1731020973579,0.90630237,75733.0,75732.0,0.000994]
[1731020973815,0.90610275,75733.0,75732.0,0.000994]
[1731020974398,0.90610275,75733.0,75727.0,0.000834]
[1731020974599,0.89022838,75733.0,75727.0,0.000834]
[1731020975378,0.89022838,75733.0,75729.0,0.0821]
[1731020975379,0.63665321,75733.0,75729.0,0.0821]
[1731020975780,0.63665321,75732.0,75730.0,0.00205528]
[1731020976801,0.83534318,75731.0,75730.0,0.00205528]
[1731020977034,0.63665321,75731.0,75730.0,0.00205528]
[1731020977250,0.63665321,75731.0,75727.0,0.000834]
[1731020977461,0.63665321,75743.0,75729.0,0.21324102]
[1731020977665,0.19868997,75738.0,75729.0,0.21324102]
[1731020977892,0.63665321,75743.0,75730.0,0.00208954]
[1731020978098,0.63665321,75743.0,75730.0,0.00292254]
[1731020978536,0.63665321,75743.0,75731.0,0.13224102]
[1731020978736,0.00824503,75742.0,75731.0,0.13224102]
[1731020978954,0.00817203,75741.0,75732.0,0.00208712]
[1731020979165,0.63665321,75743.0,75733.0,0.13224102]
[1731020979574,0.63665321,75743.0,75734.0,0.0020837]
[1731020979813,0.63665321,75743.0,75735.0,0.13224102]
[1731020980264,0.63665321,75743.0,75736.0,0.00208219]
[1731020980691,0.63665321,75743.0,75730.0,0.000833]
[1731020980894,0.63665321,75743.0,75730.0,0.13307402]
[1731020981099,0.63665321,75743.0,75731.0,0.19868997]
[1731020981301,0.63665321,75743.0,75731.0,0.00208734]
[1731020981519,0.63665321,75743.0,75732.0,0.02234894]
[1731020981719,0.63665321,75743.0,75731.0,0.00208734]
[1731020981923,0.63665321,75742.0,75733.0,0.00208491]
[1731020982142,0.63665321,75742.0,75732.0,0.00208612]
[1731020982371,0.63665321,75742.0,75734.0,0.0020837]
[1731020982606,0.63665321,75742.0,75733.0,0.00208491]
[1731020982821,0.01227326,75741.0,75735.0,0.00208249]
[1731020983049,0.01227326,75740.0,75734.0,0.0020837]
[1731020983248,0.01227326,75739.0,75736.0,0.00208189]
[1731020983458,0.63665321,75742.0,75730.0,0.13307402]
[1731020983459,0.01227326,75738.0,75730.0,0.13807402]
[1731020983654,0.03192215,75737.0,75730.0,0.13807402]
[1731020983866,0.03192215,75736.0,75730.0,0.13807402]
[1731020984158,0.03192215,75735.0,75730.0,0.13807402]
[1731020984375,0.03192215,75734.0,75730.0,0.13807402]
[1731020984577,0.63665321,75742.0,75730.0,0.13807402]
[1731020984780,0.19868997,75739.0,75730.0,0.13807402]
[1731020985434,0.35226514,75739.0,75730.0,0.000833]
[1731020985659,0.15357517,75739.0,75730.0,0.000833]
[1731020987723,0.63665321,75738.0,75730.0,0.000833]
[1731020990580,0.63665321,75738.0,75730.0,0.13307402]
[1731020991057,0.63665321,75738.0,75731.0,0.00207929]
[1731020991266,0.63832121,75738.0,75731.0,0.00207929]
[1731020991705,0.63832121,75738.0,75731.0,0.13432031]
[1731020993257,0.63832121,75738.0,75733.0,0.0763]
[1731020993471,0.63832121,75738.0,75734.0,0.13224102]
[1731020993674,0.63832121,75738.0,75734.0,0.13430318]
[1731020993675,0.63665321,75737.0,75734.0,0.13430318]
[1731020994498,0.01973936,75736.0,75734.0,0.13430318]
[1731020994687,0.01973936,75735.0,75734.0,0.13430318]
[1731020995450,0.01973936,75735.0,75734.0,0.15799301]
[1731020995682,0.63665321,75737.0,75734.0,0.15799301]
[1731020995866,0.01974537,75735.0,75734.0,0.15799301]
[1731020996066,0.01974537,75735.0,75734.0,0.13430318]
[1731020996321,0.01974537,75735.0,75734.0,0.13930318]
[1731020996536,0.01974537,75735.0,75734.0,0.19284387]
[1731020996537,0.0320831,75735.0,75734.0,0.19284387]
[1731020996710,0.0320831,75735.0,75734.0,0.26804387]
[1731020996711,0.01233773,75735.0,75734.0,0.26804387]
[1731020997146,0.001668,75738.0,75734.0,0.26804387]
[1731020997147,0.001668,75738.0,75735.0,0.005]
[1731020997409,0.001668,75738.0,75737.0,0.23377517]
[1731020997622,0.001668,75738.0,75737.0,0.52191619]
[1731020997850,0.001668,75738.0,75737.0,0.52394322]
[1731020998756,0.19868997,75755.0,75754.0,0.28617517]
[1731020998967,0.19868997,75755.0,75754.0,0.41841619]
[1731020999174,0.63665321,75762.0,75761.0,0.005]
[1731020999398,0.63665321,75770.0,75761.0,0.13724102]
[1731020999604,0.63665321,75770.0,75762.0,0.13724102]
[1731020999715,0.63665321,75770.0,75768.0,0.005]
[1731020999922,0.63665321,75770.0,75769.0,0.13224102]
[1731021000114,0.64895219,75770.0,75769.0,0.13224102]
[1731021000986,0.63665321,75770.0,75769.0,0.14596512]
[1731021001189,0.64895141,75770.0,75769.0,0.13224102]
[1731021001530,0.64895141,75770.0,75769.0,0.13422934]
[1731021002072,0.64895141,75770.0,75769.0,0.00198832]
[1731021002480,0.64895141,75770.0,75764.0,0.005]
[1731021002758,0.0122982,75769.0,75768.0,0.005]
[1731021003126,0.0122982,75769.0,75768.0,0.00698832]
[1731021003336,0.0122982,75769.0,75768.0,0.005]
[1731021004095,0.0122982,75769.0,75768.0,0.0187241]
[1731021004312,0.63832121,75770.0,75768.0,0.0187241]
[1731021004313,0.63832121,75770.0,75768.0,0.15096512]
[1731021004523,0.63832121,75770.0,75769.0,0.13224102]
[1731021004734,0.63832121,75770.0,75769.0,0.13419734]
[1731021007077,0.63832121,75770.0,75769.0,0.00195632]
[1731021007289,0.63832121,75770.0,75755.0,0.19868997]
[1731021007290,0.63832121,75770.0,75763.0,0.005]
[1731021007494,0.01226408,75769.0,75755.0,0.20368997]
[1731021007725,0.70215333,75770.0,75755.0,0.20368997]
[1731021007726,0.01226463,75768.0,75755.0,0.33593099]
[1731021007947,0.01226463,75768.0,75756.0,0.00195655]
[1731021008169,0.63832121,75770.0,75756.0,0.00195655]
[1731021008170,0.01226463,75767.0,75756.0,0.00195655]
[1731021008378,0.01226463,75766.0,75756.0,0.00195655]
[1731021008621,0.64891784,75765.0,75756.0,0.00195655]
[1731021008838,0.01226463,75764.0,75756.0,0.00195655]
[1731021009033,0.01226463,75764.0,75755.0,0.33593099]
[1731021009783,0.62491784,75765.0,75756.0,0.0335931]
[1731021010211,0.62491784,75765.0,75755.0,0.13724102]
[1731021010434,0.62491784,75765.0,75757.0,0.0019505]
[1731021010655,0.62491784,75765.0,75756.0,0.00195749]
[1731021010876,0.62491784,75765.0,75758.0,0.00195507]
[1731021011131,0.62491784,75765.0,75759.0,0.00195267]
[1731021011573,0.62491784,75765.0,75755.0,0.13724102]
[1731021011800,0.62491784,75765.0,75760.0,0.00195145]
[1731021012029,0.62491784,75765.0,75755.0,0.13724102]
[1731021012205,0.62491784,75765.0,75761.0,0.00195024]
[1731021012448,0.62491784,75765.0,75755.0,0.13724102]
[1731021012657,0.62491784,75765.0,75762.0,0.00194903]
[1731021012870,0.62491784,75765.0,75756.0,0.19868997]
[1731021013293,0.62491784,75765.0,75757.0,0.00197017]
[1731021013727,0.68807642,75765.0,75757.0,0.00197017]
[1731021014135,0.68807642,75765.0,75755.0,0.005]
[1731021014373,0.19868997,75764.0,75755.0,0.000833]
[1731021014592,0.23307517,75757.0,75755.0,0.000833]
[1731021015262,0.62491784,75756.0,75755.0,0.000833]
[1731021015473,0.64454923,75756.0,75755.0,0.000833]
[1731021017412,0.62054923,75756.0,75755.0,0.000833]
[1731021017617,0.60091784,75756.0,75755.0,0.000833]
[1731021017820,0.62056497,75756.0,75755.0,0.000833]
[1731021021146,0.60091784,75756.0,75755.0,0.000833]
[1731021021870,0.62804807,75756.0,75755.0,0.000833]
[1731021022082,0.91175886,75756.0,75755.0,0.000833]
[1731021022812,0.77951784,75756.0,75755.0,0.000833]
[1731021023030,0.81000457,75756.0,75755.0,0.000833]
[1731021023940,0.77951784,75756.0,75755.0,0.000833]
[1731021024441,0.92406141,75756.0,75755.0,0.000833]
[1731021024685,1.02968954,75756.0,75755.0,0.000833]
[1731021024908,1.06896328,75756.0,75755.0,0.000833]
[1731021025346,1.03168954,75756.0,75755.0,0.000833]
[1731021026378,1.03168954,75756.0,75740.0,0.19868997]
[1731021026379,0.005,75749.0,75740.0,0.19868997]
[1731021026623,0.15357517,75744.0,75740.0,0.19868997]
[1731021026860,0.15357517,75744.0,75741.0,0.00182051]
[1731021027075,0.15357517,75744.0,75730.0,0.000833]
[1731021027276,0.15357517,75744.0,75731.0,0.005]
[1731021027477,0.15357517,75744.0,75731.0,0.00683024]
[1731021027732,0.15857517,75744.0,75731.0,0.00683024]
[1731021028384,0.15857517,75744.0,75732.0,0.005]
[1731021028598,0.15857517,75744.0,75732.0,0.00185547]
[1731021029280,0.07890337,75743.0,75732.0,0.00185547]
[1731021029495,0.15857517,75744.0,75732.0,0.00185547]
[1731021029712,0.15857517,75744.0,75730.0,0.000833]
[1731021029927,0.15857517,75744.0,75733.0,0.00185242]
[1731021030431,0.15857517,75744.0,75734.0,0.00185121]
[1731021030874,0.15857517,75744.0,75730.0,0.000833]
[1731021031096,0.13457517,75744.0,75735.0,0.00185]
[1731021031318,0.13457517,75744.0,75730.0,0.000833]
[1731021031707,0.13457517,75744.0,75731.0,0.00300826]
[1731021032354,0.60008484,75743.0,75731.0,0.00300826]
[1731021032568,0.63203923,75743.0,75731.0,0.00300826]
[1731021032797,0.03195439,75742.0,75731.0,0.00300826]
[1731021033025,0.01229015,75741.0,75731.0,0.00300826]
[1731021033264,0.01229015,75740.0,75731.0,0.00300826]
[1731021033469,0.01229015,75739.0,75731.0,0.00300826]
[1731021033677,0.01229015,75738.0,75731.0,0.00300826]
[1731021033882,0.01229015,75737.0,75731.0,0.00300826]
[1731021034123,0.01229015,75736.0,75731.0,0.00300826]
[1731021034341,0.01229015,75735.0,75731.0,0.00300826]
[1731021034548,0.01229015,75734.0,75731.0,0.00300826]
[1731021034761,0.01229015,75733.0,75731.0,0.00300826]
[1731021034964,0.61237499,75732.0,75731.0,0.00300826]
[1731021035666,0.61237499,75732.0,75730.0,0.000833]
[1731021035872,0.60008484,75732.0,75730.0,0.000833]
[1731021036309,0.60008484,75732.0,75731.0,0.000833]
[1731021036759,0.61238133,75732.0,75731.0,0.000833]
[1731021038315,0.01229649,75732.0,75731.0,0.000833]
[1731021038777,0.01229649,75732.0,75731.0,0.00343229]
[1731021038981,0.01230318,75732.0,75731.0,0.00343229]
[1731021040605,0.01968509,75742.0,75731.0,0.00343229]
[1731021040606,0.02461254,75741.0,75731.0,0.00343229]
[1731021040776,0.19868997,75739.0,75731.0,0.00343229]
[1731021040955,0.01230318,75738.0,75731.0,0.000833]
[1731021041156,0.60008484,75745.0,75731.0,0.000833]
[1731021041157,0.01230318,75737.0,75731.0,0.000833]
[1731021041372,0.01230318,75736.0,75731.0,0.000833]
[1731021041573,0.01230318,75735.0,75732.0,0.00260416]
[1731021041829,0.60008484,75745.0,75732.0,0.00260416]
[1731021041830,0.01230318,75734.0,75733.0,0.005]
[1731021042069,0.01231344,75743.0,75733.0,0.13984187]
[1731021042449,0.01231344,75742.0,75736.0,0.1206]
[1731021042644,0.01231344,75741.0,75737.0,0.13224102]
[1731021042847,0.60008484,75745.0,75737.0,0.13484518]
[1731021043127,0.01231835,75744.0,75738.0,0.005]
[1731021043339,0.01231835,75743.0,75740.0,0.005]
[1731021043547,0.01231835,75742.0,75740.0,0.13724102]
[1731021043755,0.60008484,75745.0,75741.0,0.0025927]
[1731021043957,0.0123222,75744.0,75741.0,0.0025927]
[1731021044137,0.0123222,75743.0,75741.0,0.0025927]
[1731021044393,0.60008484,75744.0,75742.0,0.02881807]
[1731021044620,0.60008484,75744.0,75743.0,0.13724102]
[1731021044814,0.60008484,75744.0,75743.0,0.21542959]
[1731021045029,0.60008484,75754.0,75748.0,0.005]
[1731021045263,0.19868997,75755.0,75750.0,0.005]
[1731021045493,0.19868997,75755.0,75751.0,0.15046512]
[1731021045729,0.60008484,75756.0,75751.0,0.15304274]